bitfinex/quotes_SOLUSD_20241231
["timestamp","ask_amount","ask_price","bid_price","bid_amount"]
[1735649387205,10.21829503,193.61,193.59,0.25098]
[1735649387612,10.21829503,193.62,193.59,0.25098]
[1735649388323,10.21829503,193.61,193.59,0.25098]
[1735649389717,10.21829503,193.61,193.57,20.0]
[1735649389923,10.21829503,193.59,193.55,20.0]
[1735649390301,10.21829503,193.59,193.56,24.027864]
[1735649390704,10.21829503,193.59,193.57,0.12549]
[1735649394034,10.21829503,193.59,193.55,20.0]
[1735649394738,10.21829503,193.59,193.56,0.12549]
[1735649395534,10.21829503,193.58,193.55,20.25098]
[1735649396297,10.21829503,193.58,193.55,0.12549]
[1735649396502,10.21829503,193.58,193.54,0.12549]
[1735649397534,10.21829503,193.58,193.56,0.12549]
[1735649398339,10.21829503,193.58,193.54,20.0]
[1735649398533,1.5904,193.62,193.54,20.0]
[1735649398534,10.21829503,193.57,193.54,20.0]
[1735649399136,10.21829503,193.58,193.55,20.0]
[1735649399306,10.21829503,193.59,193.56,0.12549]
[1735649399507,10.21829503,193.59,193.53,0.37647]
[1735649399725,1.5904,193.62,193.55,34.37164903]
[1735649400040,10.21829503,193.62,193.59,0.12549]
[1735649400219,1.5904,193.66,193.59,24.153354]
[1735649400601,10.21829503,193.65,193.59,24.153354]
[1735649400807,1.5904,193.66,193.59,24.153354]
[1735649401019,10.21829503,193.65,193.59,24.153354]
[1735649401334,10.21829503,193.64,193.59,0.25098]
[1735649401520,10.21829503,193.63,193.56,147.81829503]
[1735649402033,10.21829503,193.63,193.57,24.153354]
[1735649402728,10.21829503,193.62,193.57,24.027864]
[1735649402902,10.21829503,193.61,193.54,11.76369503]
[1735649403103,10.21829503,193.6,193.56,20.0]
[1735649403309,10.21829503,193.6,193.49,139.1454]
[1735649403626,10.21829503,193.57,193.5,10.21829503]
[1735649404140,10.21829503,193.54,193.46,14.30306975]
[1735649404313,10.21829503,193.55,193.49,20.0]
[1735649404516,10.21829503,193.52,193.44,137.6]
[1735649404739,10.21829503,193.51,193.44,10.21829503]
[1735649405149,10.21829503,193.51,193.48,20.25098]
[1735649406030,10.21829503,193.52,193.48,20.25098]
[1735649406210,10.21829503,193.52,193.48,20.0]
[1735649406409,10.21829503,193.51,193.48,20.0]
[1735649406621,1.5264,193.55,193.42,0.09]
[1735649406622,10.21829503,193.5,193.42,0.09]
[1735649406828,10.21829503,193.5,193.43,10.21829503]
[1735649407141,10.21829503,193.5,193.45,24.027864]
[1735649407428,10.21829503,193.5,193.45,23.776884]
[1735649407729,10.21829503,193.5,193.44,23.402374]
[1735649407730,10.21829503,193.49,193.44,23.402374]
[1735649408124,15.41920863,193.5,193.45,0.12549]
[1735649408321,10.21829503,193.51,193.45,0.25098]
[1735649408518,10.21829503,193.5,193.45,0.25098]
[1735649409739,10.21829503,193.48,193.45,0.25098]
[1735649410042,10.21829503,193.49,193.46,0.12549]
[1735649410422,10.21829503,193.5,193.46,0.12549]
[1735649411321,10.21829503,193.51,193.46,0.12549]
[1735649412959,7.8868,193.55,193.46,24.027864]
[1735649413135,10.21829503,193.53,193.47,24.153354]
[1735649413319,10.21829503,193.54,193.47,24.153354]
[1735649413634,10.21829503,193.54,193.49,0.25098]
[1735649413840,10.21829503,193.55,193.49,0.25098]
[1735649414142,10.21829503,193.55,193.51,0.25098]
[1735649415942,10.21829503,193.56,193.51,0.25098]
[1735649418146,10.21829503,193.55,193.51,0.25098]
[1735649419836,1.5264,193.6,193.51,0.25098]
[1735649420028,10.21829503,193.57,193.52,0.12549]
[1735649420742,10.21829503,193.58,193.52,23.902374]
[1735649420922,10.21829503,193.56,193.53,0.12549]
[1735649421322,10.21829503,193.56,193.5,24.153354]
[1735649421933,10.21829503,193.57,193.5,24.153354]
[1735649422254,10.21829503,193.59,193.52,24.153354]
[1735649423245,10.21829503,193.58,193.52,24.153354]
[1735649424346,10.21829503,193.58,193.52,0.37647]
[1735649424645,10.21829503,193.56,193.52,0.37647]
[1735649425140,10.21829503,193.56,193.52,20.37647]
[1735649425341,10.21829503,193.57,193.52,0.37647]
[1735649426043,10.21829503,193.57,193.52,0.25098]
[1735649426245,10.21829503,193.56,193.49,147.81829503]
[1735649426548,10.21829503,193.56,193.5,24.153354]
[1735649428546,10.21829503,193.57,193.5,10.59476503]
[1735649428750,10.21829503,193.57,193.5,10.46927503]
[1735649428950,10.21829503,193.57,193.5,0.25098]
[1735649429459,10.21829503,193.56,193.5,24.027864]
[1735649430646,10.21829503,193.55,193.5,0.25098]
[1735649430950,10.21829503,193.54,193.5,0.25098]
[1735649431165,10.21829503,193.55,193.5,0.25098]
[1735649431326,10.21829503,193.56,193.5,24.027864]
[1735649432464,10.21829503,193.55,193.5,0.25098]
[1735649433053,10.21829503,193.55,193.48,10.21829503]
[1735649433350,10.21829503,193.54,193.5,20.0]
[1735649433556,10.21829503,193.54,193.45,147.20626975]
[1735649433738,10.21829503,193.53,193.46,34.37164903]
[1735649434461,10.21829503,193.52,193.46,34.37164903]
[1735649435847,10.21829503,193.54,193.48,0.37647]
[1735649436641,10.21829503,193.55,193.5,24.027864]
[1735649437043,10.21829503,193.56,193.51,0.12549]
[1735649437443,10.21829503,193.57,193.52,0.25098]
[1735649441667,10.21829503,193.56,193.52,0.25098]
[1735649445642,10.21829503,193.56,193.53,0.12549]
[1735649445848,10.21829503,193.58,193.53,0.12549]
[1735649446251,1.6644,193.6,193.53,0.12549]
[1735649446457,6.3604,193.61,193.55,0.12549]
[1735649446749,10.21829503,193.59,193.55,0.12549]
[1735649450202,10.21829503,193.58,193.55,0.12549]
[1735649450367,10.21829503,193.57,193.51,8.08296975]
[1735649450881,10.21829503,193.57,193.52,24.153354]
[1735649451488,10.21829503,193.61,193.56,0.12549]
[1735649452757,10.21829503,193.6,193.56,0.12549]
[1735649453684,1.5828,193.65,193.56,0.12549]
[1735649453863,10.21829503,193.6,193.56,0.12549]
[1735649454089,10.21829503,193.62,193.56,0.12549]
[1735649454906,10.21829503,193.6,193.56,0.12549]
[1735649455517,10.21829503,193.59,193.56,0.12549]
[1735649455885,10.21829503,193.6,193.56,0.12549]
[1735649457412,10.21829503,193.58,193.51,155.90126478]
[1735649457627,10.21829503,193.57,193.51,8.08296975]
[1735649457806,10.21829503,193.57,193.52,24.153354]
[1735649457975,10.21829503,193.56,193.51,145.68296975]
[1735649458407,10.21829503,193.55,193.52,24.027864]
[1735649458801,10.21829503,193.54,193.52,0.25098]
[1735649459516,10.21829503,193.54,193.51,0.25098]
[1735649461284,10.21829503,193.55,193.51,0.25098]
[1735649461507,10.21829503,193.56,193.51,0.25098]
[1735649464583,10.21829503,193.54,193.48,8.08296975]
[1735649464789,10.21829503,193.49,193.48,8.08296975]
[1735649465792,10.21829503,193.49,193.42,0.09]
[1735649465793,10.21829503,193.49,193.42,24.243354]
[1735649465987,6.1274,193.53,193.42,24.243354]
[1735649466203,6.1274,193.53,193.42,0.46647]
[1735649466408,10.21829503,193.48,193.42,0.46647]
[1735649466909,10.21829503,193.48,193.42,0.09]
[1735649467617,10.21829503,193.48,193.43,0.37647]
[1735649467829,10.21829503,193.46,193.43,0.37647]
[1735649467994,10.21829503,193.47,193.43,0.37647]
[1735649468690,6.1274,193.53,193.43,0.37647]
[1735649468899,10.21829503,193.48,193.43,0.37647]
[1735649469795,10.21829503,193.49,193.43,24.153354]
[1735649471115,10.21829503,193.48,193.43,24.153354]
[1735649472320,10.21829503,193.47,193.43,24.153354]
[1735649473431,10.21829503,193.45,193.42,0.09]
[1735649474321,10.21829503,193.44,193.42,0.09]
[1735649474501,20.0,193.5,193.42,0.09]
[1735649474699,10.21829503,193.45,193.42,0.09]
[1735649476124,10.21829503,193.46,193.42,0.09]
[1735649480629,10.21829503,193.44,193.42,0.09]
[1735649482127,10.21829503,193.45,193.42,0.09]
[1735649482610,1.5682,193.48,193.42,0.09]
[1735649482816,10.21829503,193.45,193.42,0.09]
[1735649483432,10.21829503,193.44,193.42,0.09]
[1735649486226,16.42849503,193.43,193.42,0.09]
[1735649486431,17.99669503,193.43,193.42,0.09]
[1735649488133,6.2102,193.49,193.42,0.09]
[1735649488305,10.21829503,193.47,193.42,0.09]
[1735649488724,1.5682,193.5,193.42,0.21549]
[1735649488924,1.5682,193.5,193.42,171.68517903]
[1735649489140,11.78649503,193.5,193.42,171.68517903]
[1735649489341,10.21829503,193.48,193.42,23.866884]
[1735649489516,10.21829503,193.44,193.42,0.09]
[1735649489712,42.44138012,193.5,193.42,0.09]
[1735649489713,10.21829503,193.43,193.42,0.09]
[1735649493443,11.78649503,193.43,193.42,0.09]
[1735649494323,21.5682,193.43,193.42,0.09]
[1735649494526,31.78649503,193.43,193.42,0.09]
[1735649494725,11.78649503,193.43,193.42,0.09]
[1735649495412,31.78649503,193.43,193.42,0.09]
[1735649495619,11.78649503,193.43,193.42,0.09]
[1735649496942,31.78649503,193.43,193.42,0.09]
[1735649501959,11.78649503,193.43,193.42,0.09]
[1735649502836,31.78649503,193.43,193.42,0.09]
[1735649505461,31.78649503,193.43,193.3,1.6078]
[1735649505462,0.12549,193.42,193.3,1.6078]
[1735649505666,10.21829503,193.37,193.3,11.82609503]
[1735649505872,10.21829503,193.38,193.31,34.37164903]
[1735649506365,10.21829503,193.37,193.31,0.12549]
[1735649506568,10.21829503,193.38,193.31,10.34378503]
[1735649506865,10.21829503,193.38,193.31,34.12066903]
[1735649507674,6.0482,193.39,193.31,23.902374]
[1735649507844,10.21829503,193.38,193.31,34.12066903]
[1735649508039,6.0482,193.39,193.31,34.12066903]
[1735649508238,10.21829503,193.39,193.33,0.12549]
[1735649508439,10.21829503,193.38,193.33,0.12549]
[1735649508879,1.5682,193.43,193.33,10.34378503]
[1735649509054,10.21829503,193.41,193.35,24.027864]
[1735649509253,10.21829503,193.41,193.35,10.46927503]
[1735649509776,1.6084,193.48,193.35,148.06927503]
[1735649509948,10.21829503,193.42,193.37,24.027864]
[1735649510773,10.21829503,193.42,193.35,147.81829503]
[1735649511256,10.21829503,193.42,193.36,24.027864]
[1735649512549,10.21829503,193.42,193.36,34.24615903]
[1735649512767,1.6084,193.48,193.38,0.12549]
[1735649512948,10.21829503,193.42,193.38,0.12549]
[1735649514783,10.21829503,193.42,193.37,0.12549]
[1735649515272,10.21829503,193.42,193.37,0.25098]
[1735649515574,10.21829503,193.41,193.37,0.12549]
[1735649516270,10.21829503,193.42,193.37,0.12549]
[1735649516670,10.21829503,193.41,193.34,147.81829503]
[1735649516871,10.21829503,193.41,193.35,24.027864]
[1735649517373,10.21829503,193.39,193.33,10.21829503]
[1735649517759,10.21829503,193.39,193.34,24.027864]
[1735649518779,10.21829503,193.4,193.34,24.027864]
[1735649519078,10.21829503,193.39,193.31,137.6]
[1735649519277,10.21829503,193.39,193.32,10.21829503]
[1735649519479,10.21829503,193.4,193.34,10.46927503]
[1735649519780,10.21829503,193.42,193.36,24.027864]
[1735649520365,10.21829503,193.41,193.34,147.81829503]
[1735649520570,10.21829503,193.42,193.35,34.24615903]
[1735649520770,10.21829503,193.41,193.35,24.027864]
[1735649521485,10.21829503,193.41,193.34,10.21829503]
[1735649522185,10.21829503,193.41,193.35,24.027864]
[1735649522483,10.21829503,193.4,193.34,24.027864]
[1735649522864,10.21829503,193.4,193.34,0.12549]
[1735649523063,20.0,193.46,193.34,0.12549]
[1735649523263,10.21829503,193.4,193.34,0.12549]
[1735649523880,10.21829503,193.37,193.29,139.2016]
[1735649524184,10.21829503,193.37,193.3,10.21829503]
[1735649524354,10.21829503,193.38,193.31,10.21829503]
[1735649525361,10.21829503,193.36,193.29,1.6016]
[1735649525561,10.21829503,193.36,193.29,11.81989503]
[1735649526589,10.21829503,193.35,193.29,1.6016]
[1735649529685,10.21829503,193.35,193.24,10.21695945]
[1735649529889,10.21829503,193.33,193.27,10.21829503]
[1735649530088,10.21829503,193.35,193.29,0.12549]
[1735649530577,10.21829503,193.34,193.29,0.12549]
[1735649530777,10.21829503,193.35,193.29,0.12549]
[1735649531086,1.6049,193.41,193.3,10.21829503]
[1735649531293,10.21829503,193.37,193.31,0.12549]
[1735649531887,10.21829503,193.38,193.31,10.46927503]
[1735649532102,1.6049,193.41,193.33,0.12549]
[1735649532392,10.21829503,193.42,193.35,34.24615903]
[1735649532563,10.21829503,193.41,193.35,24.027864]
[1735649532763,10.21829503,193.4,193.35,0.25098]
[1735649533305,10.21829503,193.41,193.35,10.46927503]
[1735649533475,10.21829503,193.4,193.35,0.25098]
[1735649533801,10.21829503,193.41,193.35,10.34378503]
[1735649534297,10.21829503,193.41,193.35,0.12549]
[1735649534497,10.21829503,193.4,193.35,0.12549]
[1735649535295,10.21829503,193.41,193.35,0.12549]
[1735649535685,10.21829503,193.4,193.35,0.12549]
[1735649536991,10.21829503,193.42,193.37,23.902374]
[1735649537194,10.21829503,193.43,193.37,10.34378503]
[1735649537376,10.21829503,193.42,193.37,0.12549]
[1735649537689,10.21829503,193.41,193.34,10.21829503]
[1735649537888,10.21829503,193.41,193.35,24.027864]
[1735649538191,10.21829503,193.41,193.35,34.24615903]
[1735649538495,10.21829503,193.41,193.32,145.68296975]
[1735649538496,10.21829503,193.38,193.32,8.08296975]
[1735649538667,10.21829503,193.39,193.33,24.027864]
[1735649539373,10.21829503,193.38,193.33,24.027864]
[1735649540202,10.21829503,193.37,193.28,145.68296975]
[1735649540370,10.21829503,193.36,193.29,147.81829503]
[1735649540579,10.21829503,193.36,193.29,34.24615903]
[1735649541473,10.21829503,193.37,193.31,0.12549]
[1735649541794,10.21829503,193.38,193.31,10.46927503]
[1735649542004,10.21829503,193.39,193.33,24.027864]
[1735649542898,20.0,193.44,193.32,10.21829503]
[1735649542899,10.21829503,193.37,193.32,24.027864]
[1735649543196,10.21829503,193.38,193.32,24.027864]
[1735649543403,10.21829503,193.39,193.32,34.24615903]
[1735649543601,10.21829503,193.39,193.33,10.21829503]
[1735649543790,10.21829503,193.41,193.34,10.46927503]
[1735649543998,10.21829503,193.38,193.34,0.12549]
[1735649544188,10.21829503,193.39,193.33,10.21829503]
[1735649544392,10.21829503,193.4,193.34,24.027864]
[1735649545279,10.21829503,193.4,193.34,10.46927503]
[1735649545581,10.21829503,193.4,193.34,0.25098]
[1735649547405,10.21829503,193.39,193.34,0.25098]
[1735649548898,10.21829503,193.4,193.34,0.25098]
[1735649553391,1.6049,193.46,193.34,148.06927503]
[1735649553597,10.21829503,193.41,193.36,0.25098]
[1735649554939,10.21829503,193.42,193.38,0.25098]
[1735649555301,10.21829503,193.4,193.34,147.81829503]
[1735649555535,10.21829503,193.4,193.35,24.027864]
[1735649555847,10.21829503,193.41,193.35,34.24615903]
[1735649558337,10.21829503,193.42,193.35,34.24615903]
[1735649558523,10.21829503,193.36,193.32,8.08296975]
[1735649559528,10.21829503,193.36,193.32,0.12549]
[1735649560109,20.0,193.44,193.31,0.12549]
[1735649560310,10.21829503,193.38,193.31,0.12549]
[1735649560528,10.21829503,193.38,193.33,0.12549]
[1735649560737,10.21829503,193.39,193.33,0.12549]
[1735649562430,10.21829503,193.38,193.32,24.027864]
[1735649565620,10.21829503,193.38,193.32,0.12549]
[1735649565841,10.21829503,193.38,193.28,145.68296975]
[1735649566021,10.21829503,193.38,193.31,0.25098]
[1735649567044,10.21829503,193.38,193.3,0.25098]
[1735649567346,10.21829503,193.38,193.3,10.46927503]
[1735649567914,10.21829503,193.35,193.3,0.12549]
[1735649568121,10.21829503,193.35,193.29,161.376884]
[1735649568122,10.21829503,193.35,193.29,137.6]
[1735649568946,10.21829503,193.35,193.28,23.902374]
[1735649569324,10.21829503,193.34,193.29,0.12549]
[1735649569954,10.21829503,193.35,193.29,0.12549]
[1735649570460,1.603,193.38,193.29,0.12549]
[1735649570758,10.21829503,193.35,193.29,0.12549]
[1735649573269,1.603,193.38,193.3,0.12549]
[1735649573427,1.6188,193.43,193.33,23.902374]
[1735649573632,10.21829503,193.39,193.34,0.12549]
[1735649574384,10.21829503,193.4,193.35,23.902374]
[1735649574678,1.6188,193.48,193.37,0.12549]
[1735649574850,10.21829503,193.43,193.37,0.12549]
[1735649575173,10.21829503,193.44,193.37,10.34378503]
[1735649575551,1.6188,193.48,193.4,10.21829503]
[1735649575753,10.21829503,193.47,193.41,0.12549]
[1735649576574,10.21829503,193.47,193.41,34.24615903]
[1735649577901,6.4418,193.49,193.41,34.24615903]
[1735649578065,10.21829503,193.47,193.41,34.24615903]
[1735649578388,1.6188,193.52,193.41,34.24615903]
[1735649578553,10.21829503,193.47,193.41,34.24615903]
[1735649579391,10.21829503,193.47,193.41,24.027864]
[1735649580193,10.21829503,193.45,193.38,10.21829503]
[1735649580804,10.21829503,193.44,193.37,147.81829503]
[1735649581391,10.21829503,193.45,193.38,10.21829503]
[1735649581596,10.21829503,193.45,193.38,34.24615903]
[1735649581798,10.21829503,193.46,193.4,0.12549]
[1735649582169,10.21829503,193.44,193.39,0.12549]
[1735649582371,40.87318012,193.5,193.39,0.12549]
[1735649582372,10.21829503,193.45,193.39,0.12549]
[1735649582793,1.6188,193.52,193.39,0.12549]
[1735649583100,10.21829503,193.46,193.4,0.12549]
[1735649583598,10.21829503,193.48,193.42,0.25098]
[1735649583801,1.6188,193.52,193.42,10.46927503]
[1735649584095,10.21829503,193.5,193.42,10.46927503]
[1735649584505,10.21829503,193.5,193.43,0.12549]
[1735649585170,10.21829503,193.5,193.45,0.12549]
[1735649585493,10.21829503,193.5,193.44,0.25098]
[1735649585678,10.21829503,193.49,193.44,0.25098]
[1735649586089,10.21829503,193.5,193.44,0.25098]
[1735649586265,10.21829503,193.51,193.45,0.12549]
[1735649587573,1.6188,193.52,193.46,10.46927503]
[1735649587574,10.21829503,193.52,193.46,10.46927503]
[1735649587971,10.21829503,193.52,193.46,24.027864]
[1735649588494,10.21829503,193.52,193.46,10.46927503]
[1735649588782,10.21829503,193.52,193.46,24.027864]
[1735649588979,10.21829503,193.51,193.46,24.027864]
[1735649589711,10.21829503,193.51,193.46,0.25098]
[1735649591480,10.21829503,193.52,193.46,0.25098]
[1735649592503,6.4418,193.54,193.46,0.25098]
[1735649592709,10.21829503,193.52,193.46,0.25098]
[1735649593704,10.21829503,193.51,193.46,0.25098]
[1735649594202,10.21829503,193.52,193.46,0.25098]
[1735649594802,20.0,193.57,193.46,0.25098]
[1735649595207,10.21829503,193.52,193.46,0.25098]
[1735649598297,20.0,193.57,193.46,0.25098]
[1735649598498,10.21829503,193.52,193.46,0.25098]
[1735649599206,20.0,193.57,193.46,0.25098]
[1735649599410,10.21829503,193.52,193.47,0.12549]
[1735649602330,10.21829503,193.51,193.47,0.12549]
[1735649602518,10.21829503,193.52,193.47,0.12549]
[1735649604116,10.21829503,193.52,193.45,10.21829503]
[1735649604325,10.21829503,193.48,193.42,10.21829503]
[1735649604530,10.21829503,193.48,193.44,0.12549]
[1735649607221,10.21829503,193.49,193.44,0.12549]
[1735649607715,10.21829503,193.47,193.4,1.6278]
[1735649608031,10.21829503,193.46,193.41,23.902374]
[1735649608932,10.21829503,193.46,193.4,24.027864]
[1735649611329,10.21829503,193.47,193.4,10.46927503]
[1735649613138,10.21829503,193.47,193.4,0.25098]
[1735649613346,10.21829503,193.47,193.4,24.027864]
[1735649615513,10.21829503,193.48,193.4,10.46927503]
[1735649616346,10.21829503,193.48,193.41,10.21829503]
[1735649618219,10.21829503,193.48,193.36,1.6264]
[1735649618426,21.5385,193.51,193.39,10.21829503]
[1735649618427,10.21829503,193.46,193.39,10.21829503]
[1735649618825,10.21829503,193.46,193.4,23.902374]
[1735649619025,10.21829503,193.47,193.4,34.12066903]
[1735649619225,10.21829503,193.47,193.4,0.12549]
[1735649619551,10.21829503,193.47,193.4,23.902374]
[1735649619726,10.21829503,193.47,193.4,10.34378503]
[1735649621445,10.21829503,193.46,193.4,23.776884]
[1735649621843,10.21829503,193.46,193.37,24.153354]
[1735649622044,1.5385,193.51,193.37,10.34378503]
[1735649622045,10.21829503,193.44,193.37,10.34378503]
[1735649622355,10.21829503,193.44,193.38,23.902374]
[1735649624256,10.21829503,193.43,193.38,0.12549]
[1735649624461,10.21829503,193.44,193.37,10.21829503]
[1735649624755,10.21829503,193.43,193.36,10.21829503]
[1735649625954,10.21829503,193.42,193.36,23.902374]
[1735649634587,10.21829503,193.43,193.36,10.34378503]
[1735649635558,10.21829503,193.43,193.36,10.21829503]
[1735649635771,10.21829503,193.42,193.35,10.21829503]
[1735649636390,10.21829503,193.42,193.34,0.12549]
[1735649636689,10.21829503,193.42,193.35,10.21829503]
[1735649637389,10.21829503,193.41,193.31,1.666]
[1735649637576,1.6613,193.44,193.33,10.21829503]
[1735649637577,10.21829503,193.4,193.33,10.21829503]
[1735649638676,10.21829503,193.39,193.33,23.902374]
[1735649640380,10.21829503,193.39,193.3,24.027864]
[1735649640583,10.21829503,193.4,193.33,10.34378503]
[1735649641294,10.21829503,193.43,193.36,10.21829503]
[1735649641465,20.0,193.4,193.36,10.21829503]
[1735649642071,10.21829503,193.43,193.36,10.21829503]
[1735649643805,10.21829503,193.42,193.36,10.21829503]
[1735649644271,10.21829503,193.42,193.35,10.21829503]
[1735649645310,10.21829503,193.39,193.31,137.72549]
[1735649645477,10.21829503,193.39,193.32,10.21829503]
[1735649646397,10.21829503,193.39,193.32,33.99517903]
[1735649647510,10.21829503,193.39,193.33,23.902374]
[1735649648602,10.21829503,193.39,193.32,24.027864]
[1735649648787,10.21829503,193.39,193.32,34.24615903]
[1735649649105,10.21829503,193.39,193.32,34.12066903]
[1735649649674,10.21829503,193.39,193.3,0.25098]
[1735649649878,10.21829503,193.38,193.31,10.21829503]
[1735649651209,6.4235,193.4,193.33,10.21829503]
[1735649651411,16.64179503,193.4,193.33,10.21829503]
[1735649651878,10.21829503,193.39,193.33,0.12549]
[1735649652410,10.21829503,193.38,193.33,0.12549]
[1735649652901,10.21829503,193.38,193.31,10.59476503]
[1735649653098,10.21829503,193.38,193.33,0.12549]
[1735649654518,10.21829503,193.38,193.31,10.21829503]
[1735649655621,10.21829503,193.37,193.31,10.21829503]
[1735649655911,10.21829503,193.38,193.31,10.21829503]
[1735649659214,10.21829503,193.37,193.31,0.12549]
[1735649661893,6.4235,193.4,193.31,0.12549]
[1735649662093,10.21829503,193.37,193.31,0.12549]
[1735649669221,10.21829503,193.37,193.31,23.902374]
[1735649670427,10.21829503,193.33,193.28,0.12549]
[1735649670611,10.21829503,193.33,193.28,8.13176681]
[1735649671011,10.21829503,193.34,193.28,8.13176681]
[1735649671216,10.21829503,193.35,193.29,23.902374]
[1735649671427,10.21829503,193.35,193.29,34.12066903]
[1735649671625,47.29668012,193.4,193.29,34.12066903]
[1735649671626,10.21829503,193.36,193.29,34.12066903]
[1735649672423,10.21829503,193.35,193.29,0.12549]
[1735649679971,10.21829503,193.35,193.29,23.902374]
[1735649680567,10.21829503,193.33,193.27,8.13176681]
[1735649681167,10.21829503,193.33,193.26,19.89636184]
[1735649682045,10.21829503,193.33,193.26,8.13176681]
[1735649682241,10.21829503,193.32,193.26,23.902374]
[1735649685965,1.5315,193.37,193.29,20.0]
[1735649686162,6.4235,193.4,193.3,10.34378503]
[1735649686363,10.21829503,193.36,193.3,23.902374]
[1735649686661,10.21829503,193.34,193.26,10.21829503]
[1735649686863,10.21829503,193.34,193.28,8.13176681]
[1735649687474,10.21829503,193.34,193.26,18.35006184]
[1735649687780,10.21829503,193.34,193.27,34.12066903]
[1735649688578,10.21829503,193.34,193.27,42.25243584]
[1735649689383,10.21829503,193.34,193.27,34.12066903]
[1735649689672,10.21829503,193.35,193.29,0.12549]
[1735649690486,10.21829503,193.33,193.27,23.776884]
[1735649690653,10.21829503,193.36,193.29,10.21829503]
[1735649691181,10.21829503,193.35,193.28,10.34378503]
[1735649691481,10.21829503,193.35,193.28,0.12549]
[1735649692052,10.21829503,193.35,193.28,10.46927503]
[1735649693354,10.21829503,193.35,193.29,23.776884]
[1735649693879,10.21829503,193.35,193.3,0.12549]
[1735649694076,10.21829503,193.36,193.3,0.12549]
[1735649694593,10.21829503,193.36,193.29,10.21829503]
[1735649695590,10.21829503,193.36,193.27,0.37647]
[1735649695789,10.21829503,193.34,193.28,0.12549]
[1735649696396,10.21829503,193.35,193.29,23.776884]
[1735649698113,10.21829503,193.35,193.28,0.12549]
[1735649698292,10.21829503,193.35,193.29,23.776884]
[1735649698663,10.21829503,193.36,193.3,0.12549]
[1735649699990,30.21829503,193.37,193.3,10.34378503]
[1735649700167,10.21829503,193.37,193.31,23.776884]
[1735649700899,10.21829503,193.38,193.31,10.21829503]
[1735649701096,1.5315,193.41,193.33,23.776884]
[1735649701398,10.21829503,193.4,193.33,10.21829503]
[1735649701577,6.5666,193.45,193.29,1.5015]
[1735649701578,10.21829503,193.38,193.29,1.5015]
[1735649701778,10.21829503,193.37,193.3,10.21829503]
[1735649702505,10.21829503,193.36,193.29,11.71979503]
[1735649703910,10.21829503,193.39,193.32,10.46927503]
[1735649704200,10.21829503,193.39,193.32,10.21829503]
[1735649704408,10.21829503,193.39,193.33,0.12549]
[1735649704614,10.21829503,193.4,193.33,0.12549]
[1735649704912,10.21829503,193.4,193.33,10.34378503]
[1735649706410,10.21829503,193.4,193.34,0.12549]
[1735649706613,1.6049,193.46,193.34,0.12549]
[1735649706614,1.6049,193.46,193.38,10.21829503]
[1735649706814,11.82319503,193.46,193.39,10.21829503]
[1735649708219,10.21829503,193.47,193.4,10.34378503]
[1735649708420,1.5561,193.51,193.42,10.34378503]
[1735649708716,10.21829503,193.49,193.42,0.12549]
[1735649708886,30.21829503,193.5,193.43,10.21829503]
[1735649709595,20.0,193.5,193.43,0.12549]
[1735649709978,10.21829503,193.48,193.43,0.12549]
[1735649711086,9.71829503,193.48,193.43,0.12549]
[1735649711911,10.21829503,193.49,193.43,0.12549]
[1735649712121,10.21829503,193.48,193.41,10.21829503]
[1735649713131,10.21829503,193.48,193.42,23.902374]
[1735649726639,10.21829503,193.48,193.42,34.12066903]
[1735649726820,10.21829503,193.48,193.42,10.34378503]
[1735649734442,10.21829503,193.48,193.42,23.902374]
[1735649735544,10.21829503,193.48,193.41,10.21829503]
[1735649735742,10.21829503,193.42,193.36,1.5542]
[1735649735918,10.21829503,193.41,193.35,10.21829503]
[1735649736639,10.21829503,193.4,193.35,23.902374]
[1735649737233,10.21829503,193.4,193.33,10.21829503]
[1735649740458,10.21829503,193.38,193.32,10.21829503]
[1735649740765,10.21829503,193.39,193.32,34.12066903]
[1735649746276,10.21829503,193.38,193.32,23.902374]
[1735649746657,10.21829503,193.38,193.32,10.34378503]
[1735649746853,10.21829503,193.38,193.31,10.21829503]
[1735649747172,10.21829503,193.36,193.3,10.21829503]
[1735649748181,10.21829503,193.37,193.3,10.21829503]
[1735649752683,10.21829503,193.36,193.29,10.21829503]
[1735649754276,10.21829503,193.35,193.28,10.21829503]
[1735649756894,10.21829503,193.33,193.23,24.153354]
[1735649757197,10.21829503,193.32,193.23,24.153354]
[1735649757368,10.21829503,193.32,193.25,10.21829503]